[Event "CCT Julius Baer-D1 2024"]
[Site "Online"]
[Date "2024.09.29"]
[Round "52"]
[White "Vachier-Lagrave, Maxime"]
[Black "Grischuk, Alexander"]
[Result "1/2-1/2"]
[Annotator "TA"]
[ECO "B44"]
[WhiteElo "2731"]
[BlackElo "2689"]
[PlyCount "76"]
[EventDate "2024.09.25"]
[EventType "swiss"]
[EventCountry "NET"]
[SourceTitle "playchess.com"]
[Source "ChessBase"]
[SourceQuality "1"]
[TimeControl "600+2"]

{[%evp 13,76,0,16,27,31,10,39,21,22,31,29,0,0,-17,-20,-18,-19,-18,-16,-21,0,0,0,0,0,0,0,-13,0,-10,-27,-20,-8,-7,-13,-22,0,-66,-38,-71,0,0,0,0,14,-2,0,-13,-17,-22,-10,-43,-45,-114,-106,-108,-108,-167,-173,-174,0,0,0,-166,0]} 1. e4 {[%emt 0:00:02]} c5 {[%emt 0:00:03]} 2. Nf3 {[%emt 0:00:01][%cal Bg1f3,Bf3d4,Bd4b5][%mdl 32]} e6 {[%emt 0:00:00][%cal Be7e6,Be6e5][%mdl 32]} 3. d4 {[%emt 0:00:02]} cxd4 {[%emt 0:00:01]} 4. Nxd4 {[%emt 0:00:00]} Nc6 {[%emt 0:00:01]} 5. Bf4 {[%emt 0:00:16]} d6 {[%emt 0:00:10]} 6. Nb5 {[%emt 0:00:33]} e5 {[%emt 0:00:14]} 7. Be3 {[%emt 0:00:00]} Be6 {[%emt 0:01:39]} 8. c4 {[%emt 0:00:14]} Nf6 {[%emt 0:00:29]} 9. f3 {[%emt 0:00:02]} Be7 {[%emt 0:00:19]} 10. Bd3 {[%emt 0:00:09] White is slightly better.} O-O {[%emt 0:00:14]} 11. O-O {[%emt 0:00:03]} Rc8 {[%emt 0:00:56]} 12. Nd2 {[%emt 0:00:04]} Nd7 {[%emt 0:00:38]} 13. Rc1 {[%emt 0:00:15]} a6 {[%emt 0:00:12]} 14. Nc3 {[%emt 0:00:01]} Bg5 {[%emt 0:00:01]} 15. Qe1 {[%emt 0:00:27]} (15. Bxg5 {looks sharper.} Qxg5 16. Nb3 Nb4 17. Be2) 15... Nb4 {[%emt 0:00:25]} 16. Bb1 {[%emt 0:01:06]} Bxc4 {[%emt 0:00:53]} 17. Nxc4 {[%emt 0:00:01]} Rxc4 {[%emt 0:00:01]} 18. a3 {[%emt 0:00:01]} Nc6 {[%emt 0:00:35]} 19. Ba2 {[%emt 0:00:02]} Rd4 {[%emt 0:00:19]} 20. b4 {[%emt 0:00:40] Repels Nc5} h6 {[%emt 0:00:25]} 21. Qe2 {[%emt 0:01:32]} Bxe3+ {[%emt 0:00:08]} 22. Qxe3 {[%emt 0:00:01]} Qg5 {[%emt 0:00:02]} 23. Qxg5 {[%emt 0:00:05]} hxg5 {[%emt 0:00:00]} 24. Rc2 {[%emt 0:00:03]} Nb6 {[%emt 0:01:18]} 25. Ra1 {[%emt 0:00:54]} (25. Kf2 $11) 25... Rd3 $1 $15 {[%emt 0:00:19] [#] White must now prevent ...Nd4.} 26. Nd5 {[%emt 0:00:09]} Nxd5 {[%emt 0:00:29]} (26... Nd4 $17 27. Rf2 Nxd5 28. Bxd5 Rb8) 27. Bxd5 $11 {[%emt 0:00:00]} Nd4 {[%emt 0:00:01]} 28. Rc7 {[%emt 0:00:19]} b5 {[%emt 0:00:07]} 29. Kf1 {[%emt 0:00:19] Against Ne2} Ne6 {[%emt 0:00:15]} 30. Bxe6 {[%emt 0:00:40]} fxe6 {[%emt 0:00:01][%mdl 4096] Endgame. KRR-KRR} 31. Ke2 {[%emt 0:00:16]} Rb3 {[%emt 0:00:08][%cal Og5g4] Strongly threatening ...g4!} 32. Rd1 {[%emt 0:00:01]} g4 {[%emt 0:00:09]} 33. fxg4 {[%emt 0:00:41]} (33. Rxd6 $15 gxf3+ 34. gxf3) 33... Rf4 $17 {[%emt 0:00:04]} 34. Rxd6 {[%emt 0:00:02]} Rxe4+ {[%emt 0:00:02]} 35. Kf2 {[%emt 0:00:18]} (35. Kd2 $17 {might work better.}) 35... Rf4+ $19 {[%emt 0:00:01]} ({Stronger than} 35... Rxa3 36. h3 $11) (35... Rxg4 36. Rxa6 Rb2+ 37. Kf3 Rf4+ 38. Ke3 $11) 36. Ke2 {[%emt 0:00:01]} Re4+ $2 {[%emt 0:00:00] [#]} ({Don't do} 36... Rxa3 37. h3 $15) ({Black should try} 36... Rxg4 $19 37. g3 Rxa3 38. Rxe6 Rxb4) 37. Kf2 $11 {[%emt 0:00:00]} Rf4+ $2 {[%emt 0:00:11]} (37... Rd4 $11 38. Rxd4 exd4) 38. Ke2 $19 {[%emt 0:00:02]} Re4+ $2 {[%emt 0:00:15] Weighted Error Value: White=0.15 (very precise) /Black=0.12 (very precise) .  Missed win:     	---       	Black=2      Mistake:       	White=3     	Black=2      Inaccurate:     	White=3     	---        OK:         	White=10    	Black=13     Best:        	White=1     	Black=3      Strong:       	---       	Black=1} ({Much less strong is} 38... Rxa3 39. h3 $15) (38... Rxg4 $19 39. g3 Rxa3 40. Rxe6 Rxb4) 1/2-1/2

[Event "CCT Julius Baer-D1 2024"]
[Site "Online"]
[Date "2024.09.29"]
[Round "52"]
[White "Aronian, Levon"]
[Black "Fedoseev, Vladimir"]
[Result "1-0"]
[Annotator "TA"]
[ECO "B01"]
[WhiteElo "2729"]
[BlackElo "2692"]
[PlyCount "119"]
[EventDate "2024.09.25"]
[EventType "swiss"]
[EventCountry "NET"]
[SourceTitle "playchess.com"]
[Source "ChessBase"]
[SourceQuality "1"]
[TimeControl "600+2"]

{[%evp 9,119,16,47,36,64,61,55,38,63,50,104,38,72,0,2,23,21,17,3,0,7,-8,2,25,24,9,68,58,31,32,36,35,42,29,145,160,137,26,37,25,77,2,15,14,232,253,484,437,690,691,676,676,745,599,732,567,553,472,501,279,275,72,399,393,393,391,370,365,411,399,399,352,342,326,406,356,589,568,566,515,592,528,520,544,539,532,506,504,505,482,469,461,708,708,679,692,677,683,709,692,2109,1988,908,822,5078,5078,5310,663,1010,5310,5298,5310]} 1. e4 {[%emt 0:00:03]} d5 {[%emt 0:00:19]} 2. exd5 {[%emt 0:00:01]} Qxd5 {[%emt 0:00:00]} 3. Nc3 {[%emt 0:00:05]} Qa5 {[%emt 0:00:01]} 4. Bc4 {[%emt 0:00:02]} Nf6 {[%emt 0:00:03]} 5. d3 {[%emt 0:00:02]} Nc6 {[%emt 0:00:05]} 6. Bd2 {[%emt 0:00:08][%cal Oc3d5] Zwart moet nu Nd5! voorkomen. B01: Scandinavische Verdediging.} Qe5+ {[%emt 0:00:48] Onnauwkeurig} 7. Nge2 {[%emt 0:00:03] OK} a6 {[%emt 0:00:27] Tegen Nb5. OK} 8. Bf4 {[%emt 0:00:15] OK. Wit staat iets beter.} Qa5 {[%emt 0:00:03]} 9. O-O $146 {[%emt 0:00:02] OK} ({Predecessor:} 9. a3 b5 10. b4 Qb6 11. Nd5 Nxd5 12. Bxd5 e6 13. Be3 Qb7 14. Bf3 Bd7 15. Qd2 {1-0 Lopez Ziegler,C (1900)-Osuna Osuna,F (1614) Madrid Codes Memorial 11th 2017 (5)}) {Zwart zou kunnen overwegen.} 9... Bg4 {[%emt 0:00:08] Fout (0.5)} (9... e6 $14) {Wit heeft de optie.} 10. Qe1 {[%emt 0:00:41] Fout (0.7)} (10. a3 $16) 10... e6 {[%emt 0:00:09] Onnauwkeurig} {Wit zou kunnen overwegen.} 11. a3 {[%emt 0:00:06] Fout (0.7)} (11. Bd2 $16) 11... Bd6 $11 {[%emt 0:00:14] OK} 12. b4 {[%emt 0:00:04]} Qf5 {[%emt 0:00:29] ...Bxe2 zou dodelijk zijn. OK} 13. Bxd6 {[%emt 0:00:12] OK} Bxe2 {[%emt 0:00:01] OK} 14. Nxe2 {[%emt 0:00:00]} cxd6 {[%emt 0:00:02] Beste (Gemakkelijk)} 15. f4 {[%emt 0:00:01] OK} d5 {[%emt 0:00:32]} 16. Bb3 {[%emt 0:00:02] OK} O-O {[%emt 0:00:18] OK} 17. Qh4 {[%emt 0:00:57]} {Zwart heeft de voorkeur.} Rfc8 {[%emt 0:00:48] Fout (0.6)} (17... h6 $11) 18. h3 $14 {[%emt 0:00:09] OK} Nd7 {[%emt 0:00:42] OK} 19. g4 {[%emt 0:00:01] Beste (Gemakkelijk)} Qf6 {[%emt 0:00:09] OK} 20. Qxf6 {[%emt 0:00:02] OK} Nxf6 {[%emt 0:00:32]} 21. f5 {[%emt 0:00:01] OK} a5 {[%emt 0:00:14] Houdt evenwicht. Fout (1.2)} (21... Re8 $11) 22. fxe6 $16 {[%emt 0:00:30] OK} fxe6 {[%emt 0:00:13][%cal Ra5b4]} {Wit heeft de voorkeur.} 23. Rae1 {[%emt 0:00:03] Fout (1.1)} (23. b5 $1 $16 {[%cal Rb5c6]} Ne5 24. Nd4) 23... axb4 $11 {[%emt 0:00:56] Beste} 24. axb4 {[%emt 0:00:01]} Re8 {[%emt 0:00:01] Behoudt evenwicht. Fout (0.5)} (24... h6 $11) {Wit kan overwegen.} 25. b5 {[%emt 0:00:26] Fout (0.8)} (25. Nf4 $16) 25... Na5 {[%emt 0:00:01] Beste (Gemakkelijk)} 26. Ba2 $36 {[%emt 0:00:00][%mdl 2048] Dreigt te winnen met g5. Wit heeft goed spel.} b6 $2 {[%emt 0:00:00] [#] en Zwart staat solide. Wit heeft geen kans. Verliest partij (2.2)} (26... Nc4 $11) 27. g5 $1 $18 {[%emt 0:00:24] Sterk} Nh5 {[%emt 0:00:07] [#] Kan gunstiger zijn. Fout (2.3)} (27... Nd7 28. Nf4 Nc4) 28. Nd4 $1 {[%emt 0:00:07] Sterk} Nb7 {[%emt 0:00:00] Zwart is zwak op de lichte velden. Fout (2.5)} (28... Nc4 $142 29. Rxe6 (29. Bxc4 dxc4 30. dxc4 e5 $16) (29. dxc4 Rxa2 30. cxd5 Raa8 $18) 29... Rxe6 30. Nxe6 Ne3) 29. Rxe6 {[%emt 0:00:07] Beste (Gemakkelijk)} Red8 {[%emt 0:00:16] OK} 30. Rxb6 {[%emt 0:00:14]} Nc5 {[%emt 0:00:02]} 31. Rc6 {[%emt 0:00:02]} Nxd3 {[%emt 0:00:10]} 32. cxd3 {[%emt 0:00:09]} Rxa2 {[%emt 0:00:02] Beste} 33. b6 {[%emt 0:00:01]} Rb2 {[%emt 0:00:06] Beste} 34. Rfc1 {[%emt 0:00:38] Onnauwkeurig} Nf4 {[%emt 0:00:09] OK} 35. Rc8 $2 {[%emt 0:00:46] Garandeert overwicht. Gemiste overwinning (2.0)} (35. R1c2 $18 Rb4 (35... Rxc2 $2 36. Nxc2 Rb8 37. Nb4 $18) 36. Kh2) 35... Rxc8 $4 {[%emt 0:00:39][%mdl 8192] Is uitdagender. Verliest partij (3.3)} (35... Nxh3+ $16 36. Kh1 (36. Kf1 Rf8+ 37. Rxf8+ Kxf8 $18) 36... Nf2+ 37. Kg1 Nh3+ 38. Kf1 Rf8+ 39. Rxf8+ Kxf8) 36. Rxc8+ $16 {[%emt 0:00:02][%mdl 4096] Eindspel. KRN-KRN} Kf7 {[%emt 0:00:01]} 37. Rc7+ {[%emt 0:00:01] Beste (Gemakkelijk)} Kg6 {[%emt 0:00:01] OK} 38. b7 {[%emt 0:00:01] Beste (Gemakkelijk)} Nxh3+ {[%emt 0:01:03]} 39. Kf1 {[%emt 0:00:02] OK} Nxg5 {[%emt 0:00:54]} 40. Nc6 {[%emt 0:00:04]} Ne6 {[%emt 0:00:09] OK} 41. Rd7 {[%emt 0:00:03] OK} (41. b8=B Nxc7 42. Bxc7 Kf5 $19) 41... Rb1+ {[%emt 0:00:09]} 42. Kf2 {[%emt 0:00:02]} Rb2+ $2 {[%emt 0:00:01] Is wellicht gunstiger. Fout (2.3)} (42... Nc5 43. Rd6+ (43. b8=N $2 {te hebberig.} Nxd7 44. Nxd7 Kf7 $19) (43. b8=R Rxb8 44. Rd6+ Kf7 $18) (43. b8=Q Nxd3+ 44. Ke3 Rxb8 $18) 43... Kf7) 43. Kg3 $18 {[%emt 0:00:04] OK. Wit is duidelijk aan het winnen.} Nc5 {[%emt 0:00:11] OK} 44. Rd6+ {[%emt 0:00:02]} (44. b8=N Nxd7 (44... Nxd3 45. Rd6+ Kf7 46. Rxd5 $16) 45. Nxd7 h5 46. Ne7+ Kf7 47. Nxd5 Ke6 48. Nf4+ Kxd7 $19) 44... Kf5 {[%emt 0:00:03]} 45. b8=Q {[%emt 0:00:24] OK} Rxb8 {[%emt 0:00:00] OK} 46. Nxb8 {[%emt 0:00:01]} Ke5 {[%emt 0:00:01] OK} 47. Rd8 {[%emt 0:00:06] Nd7+ is de sterke dreiging. OK} Nxd3 {[%emt 0:00:02]} 48. Nc6+ {[%emt 0:00:01] OK} Ke6 {[%emt 0:00:01]} 49. Nd4+ {[%emt 0:00:05] OK} Ke5 {[%emt 0:00:01]} 50. Nf3+ {[%emt 0:00:01] OK} Ke6 {[%emt 0:00:01] Fout (2.5)} (50... Kf6 $142 51. Rxd5 Nc1) 51. Ng5+ {[%emt 0:00:03] Beste} Ke5 {[%emt 0:00:01] OK} 52. Nxh7 {[%emt 0:00:01]} Nc5 {[%emt 0:00:02]} 53. Ng5 {[%emt 0:00:03]} g6 {[%emt 0:00:01]} 54. Nf3+ {[%emt 0:00:06]} Ke4 {[%emt 0:00:03]} 55. Re8+ {[%emt 0:00:04]} Kd3 {[%emt 0:00:00]} 56. Kf4 {[%emt 0:00:07]} d4 {[%emt 0:00:03]} 57. Ne5+ {[%emt 0:00:09]} Kd2 {[%emt 0:00:04]} 58. Kf3 {[%emt 0:00:04]} d3 {[%emt 0:00:02]} 59. Rd8 {[%emt 0:00:03]} Kc3 {[%emt 0:00:08]} 60. Ke3 {[%emt 0:00:01] Blunder waarde: Wit=0.35/Zwart=0.63.  Verliest partij:   	---       	Zwart=2      Gemiste overwinning: 	Wit=1      	---        Fout:        	Wit=4      	Zwart=8      Onnauwkeurig:    	Wit=1      	Zwart=2      OK:         	Wit=18     	Zwart=15     Beste:        	Wit=5      	Zwart=5      Sterk:        	Wit=2      	---} 1-0

[Event "CCT Julius Baer-D1 2024"]
[Site "Online"]
[Date "2024.09.29"]
[Round "52"]
[White "Fedoseev, Vladimir"]
[Black "Aronian, Levon"]
[Result "0-1"]
[Annotator "TA"]
[ECO "D02"]
[WhiteElo "2692"]
[BlackElo "2729"]
[PlyCount "74"]
[EventDate "2024.09.25"]
[EventType "swiss"]
[EventCountry "NET"]
[SourceTitle "playchess.com"]
[Source "ChessBase"]
[SourceQuality "1"]
[TimeControl "600+2"]

{[%evp 9,74,1,9,0,10,7,14,2,18,8,3,0,18,-13,0,-22,-16,-10,-13,-16,0,-6,-4,-5,0,-6,-11,-6,8,-25,-22,-34,-31,-28,-21,-33,-30,-28,-27,-35,-15,-18,-14,-16,-6,-68,-31,-25,-32,-25,0,0,0,0,0,0,0,0,0,0,0,0,0,-478,-389,-29998,-29999]} 1. d4 {[%emt 0:00:06]} Nf6 {[%emt 0:00:05]} 2. Bf4 {[%emt 0:00:01]} d5 {[%emt 0:00:03]} 3. e3 {[%emt 0:00:01]} e6 {[%emt 0:00:02]} 4. Nf3 {[%emt 0:00:06]} Bd6 {[%emt 0:00:03]} 5. Bg3 {[%emt 0:00:09]} O-O {[%emt 0:00:19]} 6. c4 {[%emt 0:00:01]} dxc4 {[%emt 0:00:56]} 7. Nc3 {[%emt 0:00:25]} c5 {[%emt 0:00:12]} 8. dxc5 {[%emt 0:00:09] The position is equal.} Bxc5 {[%emt 0:00:03]} 9. Bxc4 {[%emt 0:00:14]} Qxd1+ {[%emt 0:01:02]} 10. Rxd1 {[%emt 0:00:04]} a6 {[%emt 0:00:01]} 11. a4 {[%emt 0:00:44]} Bd7 {[%emt 0:00:19]} 12. Ke2 {[%emt 0:01:10]} Rc8 {[%emt 0:00:17]} 13. Ne5 {[%emt 0:00:23]} Be8 {[%emt 0:00:14]} 14. Bb3 {[%emt 0:00:08]} b5 {[%emt 0:01:27]} 15. axb5 {[%emt 0:00:46]} axb5 {[%emt 0:00:02]} 16. Ra1 {[%emt 0:00:02]} Na6 {[%emt 0:00:01]} 17. Rhd1 {[%emt 0:00:15]} Be7 {[%emt 0:00:18]} 18. Nd3 {[%emt 0:00:11]} Nb4 {[%emt 0:00:56]} 19. Nf4 {[%emt 0:00:21]} (19. Rxa8 {simplifies} Rxa8 20. Nxb4 Bxb4 21. f3) 19... g5 {[%emt 0:00:58]} (19... Rxa1 {simplifies} 20. Rxa1 Kf8 21. Nh3 Nh5) 20. Nxe6 {[%emt 0:00:12]} fxe6 {[%emt 0:00:01]} 21. Bxe6+ {[%emt 0:00:00]} Bf7 {[%emt 0:00:01]} 22. Bxc8 {[%emt 0:00:08]} Bc4+ {[%emt 0:00:01]} 23. Kf3 {[%emt 0:00:21]} Rxc8 {[%emt 0:00:02]} 24. Bd6 $1 {[%emt 0:00:19]} Nc6 {[%emt 0:00:33]} 25. Bxe7 {[%emt 0:01:10]} Nxe7 {[%emt 0:00:01] Excellent horsemanship.} 26. h3 {[%emt 0:00:47]} b4 {[%emt 0:00:25][%mdl 1024] Black has compensation.} 27. Na4 {[%emt 0:00:04]} (27. Na2 $11) 27... Bd5+ {[%emt 0:00:08]} 28. Kg3 {[%emt 0:00:03]} Rc2 {[%emt 0:00:13] [#] Strongly threatening ...Bc6.} 29. Nb6 {[%emt 0:01:21]} Bc6 {[%emt 0:00:01]} 30. Ra7 $1 {[%emt 0:00:02]} Nf5+ {[%emt 0:01:15]} 31. Kh2 {[%emt 0:00:01] Rd8+ would now be deadly.} Rxf2 {[%emt 0:00:01]} 32. Rd8+ {[%emt 0:00:01]} Ne8 $1 {[%emt 0:00:01]} 33. e4 {[%emt 0:00:01]} Nh4 {[%emt 0:00:29]} 34. Nd5 {[%emt 0:00:47] Ne7+ is the strong threat.} Rxg2+ {[%emt 0:00:01]} 35. Kh1 {[%emt 0:00:01] Hoping for Ne7+.} Kf8 {[%emt 0:00:02] And now ...Rd2 would win.} 36. Rxh7 $2 {[%emt 0:00:14][%mdl 8192]} (36. Nf6 $11 {and White is okay.}) 36... Rxb2 {[%emt 0:00:12] ( -> ...Nf3)} 37. Kg1 $2 {[%emt 0:00:07] [#]} (37. Nf6 $19 Nf3 38. Ng4) 37... Nf3+ {[%emt 0:00:07] Weighted Error Value: White=0.48/Black=0.11 (very precise) .  Loses game:     	White=1     	---        Mistake:       	White=2     	---        Inaccurate:     	White=2     	Black=1      OK:         	White=12    	Black=11     Best:        	White=2     	Black=2      Strong:       	White=2     	Black=1} 0-1

[Event "CCT Julius Baer-D1 2024"]
[Site "Online"]
[Date "2024.09.29"]
[Round "52"]
[White "Grischuk, Alexander"]
[Black "Vachier-Lagrave, Maxime"]
[Result "0-1"]
[Annotator "TA"]
[ECO "D06"]
[WhiteElo "2689"]
[BlackElo "2731"]
[PlyCount "140"]
[EventDate "2024.09.25"]
[EventType "swiss"]
[EventCountry "NET"]
[SourceTitle "playchess.com"]
[Source "ChessBase"]
[SourceQuality "1"]
[TimeControl "600+2"]

{[%evp 66,140,37,31,31,11,10,8,8,14,11,11,12,14,29,28,28,0,0,0,0,0,0,0,0,0,0,0,0,-27,0,0,0,0,0,0,0,0,0,0,0,0,0,0,0,0,0,0,0,0,0,0,0,0,0,0,0,-2,0,0,0,0,0,0,0,0,0,-645,-645,-536,-472,-2231,-2318,-1618,-1408,-1223,-1157]} 1. Nf3 {[%emt 0:00:04]} d5 {[%emt 0:02:30]} 2. d4 {[%emt 0:00:03]} Nf6 {[%emt 0:00:03]} 3. c4 {[%emt 0:00:03]} c5 {[%emt 0:00:02]} 4. cxd5 {[%emt 0:00:04]} cxd4 {[%emt 0:00:03]} 5. Qxd4 {[%emt 0:00:02]} Qxd5 {[%emt 0:00:02]} 6. Nc3 {[%emt 0:00:03]} Qxd4 {[%emt 0:00:03]} 7. Nxd4 {[%emt 0:00:02]} a6 {[%emt 0:00:02]} 8. g3 {[%emt 0:00:03]} e5 {[%emt 0:00:03]} 9. Nb3 {[%emt 0:00:03] 9.Nb3 scores better than 9.Nc2.} Nc6 {[%emt 0:00:02] D06: Queen's Gambit: Symmetrical and Baltic Defences.} 10. Bg2 {[%emt 0:00:02]} a5 {[%emt 0:00:02]} 11. Bd2 {[%emt 0:00:04]} a4 {[%emt 0:00:04]} 12. Nb5 {[%emt 0:00:03]} Kd8 {[%emt 0:00:03]} 13. Nc1 {[%emt 0:00:02]} Bb4 {[%emt 0:00:02]} 14. Nc3 {[%emt 0:00:04]} a3 $146 {[%emt 0:00:10]} ({Predecessor:} 14... Nd4 15. Rb1 Bf5 16. Nd3 Bd6 17. Bg5 Kc8 18. Kd2 Nd7 19. Be4 Be6 20. Rhd1 Kb8 {½-½ Agaltsov,I-Tramacere,S (2091) W-Cup22 WS36 email 2017}) 15. Rb1 {[%emt 0:01:01]} Bf5 {[%emt 0:00:16]} 16. Nd3 {[%emt 0:00:03]} Bxc3 {[%emt 0:01:48]} 17. Bxc3 {[%emt 0:00:17]} Ne4 {[%emt 0:00:05]} 18. Bxe5 {[%emt 0:01:33]} Nxe5 {[%emt 0:00:37]} 19. Nxe5 {[%emt 0:00:02]} Nd6 {[%emt 0:00:03]} 20. Nd3 {[%emt 0:01:11]} Re8 {[%emt 0:00:08]} 21. Kd1 {[%emt 0:00:29]} Ne4 {[%emt 0:00:20]} 22. Bxe4 {[%emt 0:00:21]} Bxe4 {[%emt 0:00:02]} 23. Re1 {[%emt 0:00:03]} axb2 {[%emt 0:00:09]} 24. Rxb2 {[%emt 0:00:04]} Re6 {[%emt 0:00:19]} 25. Nb4 {[%emt 0:01:21]} Rd6+ {[%emt 0:00:15]} 26. Rd2 {[%emt 0:00:05]} Ke7 {[%emt 0:00:05]} 27. f3 {[%emt 0:00:36]} Ra4 {[%emt 0:00:04]} 28. a3 {[%emt 0:00:11]} Bg6 {[%emt 0:00:18]} 29. e4 {[%emt 0:00:05]} Rxa3 {[%emt 0:00:04]} 30. Nd5+ {[%emt 0:00:04]} Kd8 {[%emt 0:00:08]} 31. Ke2 {[%emt 0:00:04]} Kc8 {[%emt 0:00:47]} 32. Rb1 {[%emt 0:00:28]} Kb8 {[%emt 0:00:11]} 33. g4 {[%emt 0:00:13]} f6 {[%emt 0:00:04]} 34. Rdb2 {[%emt 0:00:09]} Ra7 {[%emt 0:00:08]} 35. Rb5 {[%emt 0:00:18]} Bf7 {[%emt 0:00:08]} 36. Ke3 {[%emt 0:00:08]} Ra3+ {[%emt 0:00:07]} 37. Kf4 {[%emt 0:00:10]} g5+ {[%emt 0:00:05]} 38. Kg3 {[%emt 0:00:03]} Bxd5 {[%emt 0:00:04]} 39. exd5 {[%emt 0:00:02]} Ra7 {[%emt 0:00:08]} 40. Re1 {[%emt 0:00:09]} b6 {[%emt 0:00:02]} 41. h4 {[%emt 0:00:08]} Ra5 {[%emt 0:00:14]} 42. Rb4 {[%emt 0:00:36]} Raxd5 {[%emt 0:00:04]} 43. Re7 {[%emt 0:00:03]} h6 {[%emt 0:00:10]} 44. Rf7 {[%emt 0:00:12]} b5 {[%emt 0:00:07]} 45. h5 {[%emt 0:00:07]} Kc8 {[%emt 0:00:04]} 46. Re4 {[%emt 0:00:04]} Re5 {[%emt 0:00:04]} 47. Rb4 {[%emt 0:00:03]} (47. Rxf6 $5 Rxf6 48. Rxe5 $11) 47... Kd8 {[%emt 0:00:05]} 48. Rb3 {[%emt 0:00:03]} Re7 {[%emt 0:00:06]} 49. Rf8+ {[%emt 0:00:04]} Re8 {[%emt 0:00:03]} 50. Rxe8+ {[%emt 0:00:02]} Kxe8 {[%emt 0:00:02]} 51. Rxb5 {[%emt 0:00:03]} Rd7 {[%emt 0:00:04]} 52. Rb8+ {[%emt 0:00:04]} Kf7 {[%emt 0:00:03]} 53. Kf2 {[%emt 0:00:03]} Kg7 {[%emt 0:00:03]} 54. Ke3 {[%emt 0:00:04]} Re7+ {[%emt 0:00:02]} 55. Kd4 {[%emt 0:00:02]} Rd7+ {[%emt 0:00:03]} 56. Ke4 {[%emt 0:00:02]} Re7+ {[%emt 0:00:02]} 57. Kd5 {[%emt 0:00:03]} Kf7 {[%emt 0:00:10]} 58. Rd8 {[%emt 0:00:03]} Re5+ {[%emt 0:00:04]} 59. Kd6 {[%emt 0:00:03]} Re6+ {[%emt 0:00:02]} 60. Kc7 {[%emt 0:00:02]} Re7+ {[%emt 0:00:03]} 61. Kc6 {[%emt 0:00:03]} Re6+ {[%emt 0:00:04]} 62. Kd5 {[%emt 0:00:03]} Re5+ {[%emt 0:00:02]} 63. Kd4 {[%emt 0:00:02]} Re7 {[%emt 0:00:03]} 64. Rc8 {[%emt 0:00:03]} Rd7+ {[%emt 0:00:04]} 65. Kc5 {[%emt 0:00:03]} Rd3 {[%emt 0:00:04]} 66. Rc7+ $2 {[%emt 0:00:03][%mdl 8192]} (66. Kc4 $11 Rxf3 67. Kd5) 66... Ke6 $19 {[%emt 0:00:03]} 67. Rh7 {[%emt 0:00:02]} Rxf3 {[%emt 0:00:03]} 68. Rxh6 {[%emt 0:00:03]} (68. Kc4 $142 Ke5 69. Rh8) 68... Rf4 $19 {[%emt 0:00:03]} 69. Rh8 {[%emt 0:00:02]} Rxg4 {[%emt 0:00:03]} 70. h6 {[%emt 0:00:03]} Rh4 {[%emt 0:00:02]} 0-1